Cogmind - Beta 9.4 *** ADVENTURER MODE // 2020.08.05 @ 20:20:46 Player: Scyralis Result: Self-destructed Performance ------------- Evolutions (1) 500 Regions Visited (2) 400 Robots Destroyed (26) 130 Value Destroyed (480) 480 Prototype IDs (0) 0 Alien Tech Used (0) 0 Bonus (0) 0 TOTAL SCORE: 1510 Bonus ------- None Cogmind --------- Core Integrity 362/400 Matter 300/300 Energy 560/560 System Corruption 0% Temperature Cool (6) Movement Walking (120) Location -9/Materials Parts ------- > --- POWER (1) -------- Light Nuclear Core > --- PROPULSION (2) --- Aluminum Leg Aluminum Leg > --- UTILITY (4) ------ High-capacity Battery Structural Scanner Hacking Suite > --- WEAPON (2) ------- (None) > --- INVENTORY (4) ---- Improved Targeting Computer System Shield Peak State ------------ > --- POWER ------------ Light Nuclear Core > --- PROPULSION ------- Aluminum Leg Aluminum Leg > --- UTILITY ---------- High-capacity Battery Structural Scanner Light Armor Plating Hacking Suite > --- WEAPON ----------- Heavy EM Pulse Gun Heavy EM Pulse Gun > --- INVENTORY -------- EM Pulse Gun [Rating: 15] Favorites ----------- Power Light Nuclear Core Engine Light Ion Engine Power Core Light Nuclear Core Propulsion Aluminum Leg Leg Aluminum Leg Utility High-capacity Battery Device Structural Scanner Storage High-capacity Battery Hackware Hacking Suite Protection Light Armor Plating Weapon Heavy EM Pulse Gun Energy Gun Heavy EM Pulse Gun Build | -11 -10 -9 ------- Run | Scr Mat Mat Slots Evolved 2 | . . 2 Power . | . . . Propulsion . | . . . Utility 2 | . . 2 Weapon . | . . . Parts Attached 14 | 5 6 3 Power 3 | 1 2 . Engine 1 | 1 . . Core 2 | . 2 . Reactor . | . . . Propulsion 2 | 2 . . Treads . | . . . Leg 2 | 2 . . Wheel . | . . . Hover . | . . . Flight . | . . . Utility 4 | . 2 2 Device 1 | . . 1 Storage 1 | . 1 . Processor . | . . . Hackware 1 | . . 1 Protection 1 | . 1 . Artifact . | . . . Weapon 5 | 2 2 1 Energy Gun 5 | 2 2 1 Energy Cannon . | . . . Ballistic Gun . | . . . Ballistic Cannon . | . . . Launcher . | . . . Special Weapon . | . . . Impact Weapon . | . . . Slashing Weapon . | . . . Piercing Weapon . | . . . Special Melee Weapon . | . . . Unidentified Prototypes . | . . . Parts Lost 4 | . . 4 Power . | . . . Propulsion . | . . . Utility 1 | . . 1 Weapon 3 | . . 3 Highest Loss Streak 3 | . . 3 Average Slot Usage (%) 95 | . 95 97 Engine 3 | . 4 . Core 9 | . 9 11 Leg 26 | . 28 22 Device 3 | . . 11 Storage 11 | . 11 11 Hackware 3 | . . 9 Protection 11 | . 11 10 Energy Gun 25 | . 27 21 Naked Turns . | . . . Heaviest Build 19 | 6 18 19 Greatest Support 20 | 20 20 20 Greatest Overweight (x) . | . . . Average Overweight (x) . | . . . Largest Inventory Capacity 4 | 4 4 4 Average Capacity 4 | 4 4 4 Most Carried 4 | 4 3 3 Average Carried . | . . 1 Final Capacity 4 | 4 4 4 Final Carried 2 | . 2 2 Class Distribution -------------------- 72% | Mutant 27% | Hacker-Mutant Dominant Class ---------------- Mutant | -10/Materials Hacker-Mutant | -9/Materials Resources | -11 -10 -9 ----------- Run | Scr Mat Mat Matter Collected 340 | 250 50 40 Remotely . | . . . Salvage Created 879 | 59 619 201 Parts 59 | 4 37 18 Haulers Intercepted 2 | . 2 . Recyclers Shooed . | . . . Parts Field Recycled . | . . . Retrieved Matter . | . . . Parts Self-Destructed . | . . . Prevented . | . . . Kills | -11 -10 -9 ------- Run | Scr Mat Mat Combat Hostiles Destroyed 14 | . 10 4 Guns 12 | . 8 4 AOE 2 | . 2 . Classes Destroyed 9 | 1 6 2 Builder 1 | . 1 . Tunneler 1 | . 1 . Hauler 2 | . 2 . Recycler 2 | 1 1 . Operator 2 | . . 2 Watcher 4 | . 3 1 Swarmer 7 | . 5 2 Grunt 5 | . 5 . Sentry 2 | . . 2 Best Kill Streak 4 | 1 4 4 Combat Bots Only 3 | . 3 2 Max Kills in Single Turn 3 | 1 3 1 Gunslinging . | . . . Exploded 2 | . 2 . Melee . | . . . Uniques/NPCs Destroyed . | . . . Combat | -11 -10 -9 -------- Run | Scr Mat Mat Damage Taken 405 | . 164 241 Core 73 | . 35 38 Absorbed by Shields . | . . . Core Remaining (%) 93 | 100 86 . Volleys Fired 52 | 2 30 20 Largest 2 | 2 2 2 Hottest 90 | 90 90 90 Shots Fired 102 | 4 60 38 Gun 102 | 4 60 38 Cannon . | . . . Launcher . | . . . Special . | . . . Kinetic . | . . . Thermal 20 | 4 16 . Explosive . | . . . Electromagnetic 82 | . 44 38 Robot Hit Streak 11 | 4 11 10 Robot Miss Streak 3 | . 3 2 Penetration Max . | . . . Secondary Targets 1 | . 1 . Max Gunslinging Chain 1 | . 1 . Shots Hit Robots 75 | 4 43 28 Core Hits 36 | 2 22 12 Critical Hits . | . . . Critical Kills . | . . . Critical Parts Destroyed . | . . . Melee Attacks . | . . . Impact . | . . . Slashing . | . . . Piercing . | . . . Sneak Attacks . | . . . Combat Hostiles . | . . . Follow-up Attacks . | . . . Damage Inflicted 1415 | 46 916 453 Guns 1115 | 46 657 412 Cannons . | . . . Explosions 297 | . 259 38 Melee . | . . . Ramming 3 | . . 3 Kinetic . | . . . Thermal 499 | 46 415 38 Explosive . | . . . Electromagnetic 913 | . 501 412 Impact . | . . . Slashing . | . . . Piercing . | . . . Highest Corruption . | . . . Average Corruption . | . . . Corruption Purged . | . . . Overload Shots . | . . . Overflow Damage 14 | . 14 . Projectiles . | . . . Explosions 14 | . 14 . Melee . | . . . Knockbacks . | . . . Impact . | . . . Kinetic . | . . . Secondary . | . . . Self-Inflicted Damage 23 | . 22 1 Shots 1 | . 1 . Rammed 1 | . . 1 Targets Rammed 1 | . . 1 Kicked . | . . . Crushed . | . . . Highest Temperature 207 | 30 207 163 Average Temperature 62 | 14 64 61 Received Heat Transfer 84 | . 39 45 Siege Activations . | . . . Robots Corrupted . | . . . Combat Hostiles . | . . . Parts Fried 10 | . 7 3 Impact Corruptions . | . . . Robots Melted . | . . . Combat Hostiles . | . . . Parts Melted 4 | . 4 . Heat Transferred 721 | 124 547 50 Parts Sabotaged . | . . . Parts Stolen . | . . . Parts Stripped . | . . . Power Chain Reactions 5 | . 4 1 Missiles Intercepted . | . . . Alert | -11 -10 -9 ------- Run | Scr Mat Mat Peak Influence 188 | 5 188 153 Average Influence 80 | 3 84 86 Maximum Alert Level . | . . . Low Security (%) 100 | 100 100 100 Level 1 . | . . . Level 2 . | . . . Level 3 . | . . . Level 4 . | . . . Level 5 . | . . . High Security . | . . . Max Security . | . . . Squads Dispatched 2 | . . 2 Investigation . | . . . Extermination . | . . . Reinforcement 2 | . . 2 Assault . | . . . Garrison . | . . . Intercept . | . . . Construction Impeded . | . . . Haulers Reinforced . | . . . Stealth | -11 -10 -9 --------- Run | Scr Mat Mat Distress Signals 2 | . 1 1 Communications Jammed . | . . . Distress Signals . | . . . Times Spotted 29 | . 16 13 Peak Tracking Total 4 | . 4 4 Tactical Retreats 2 | . 2 . Traps | -11 -10 -9 ------- Run | Scr Mat Mat Traps Triggered . | . . . Indirectly . | . . . Trap Hack Attempts . | . . . Triggered . | . . . Disarmed . | . . . Reprogrammed . | . . . Reused . | . . . Traps Extracted . | . . . Installed . | . . . Triggered . | . . . Machines | -11 -10 -9 ---------- Run | Scr Mat Mat Machines Disabled . | . . . Max in Single Turn . | . . . Machines Sabotaged . | . . . Garrisons Compromised . | . . . Overloaded Fab Kills . | . . . Fab Network Shutdowns . | . . . Hacking | -11 -10 -9 --------- Run | Scr Mat Mat Machines Accessed 8 | . 5 3 Terminals 8 | . 5 3 Fabricators . | . . . Repair Stations . | . . . Recycling Units . | . . . Scanalyzers . | . . . Garrison Access . | . . . Total Hacks 31 | . 18 13 Successful 17 | . 11 6 Failed 14 | . 7 7 Catastrophic 2 | . . 2 Database Lockouts . | . . . Manual 19 | . 9 10 Terminals 31 | . 18 13 Fabricators . | . . . Repair Stations . | . . . Recycling Units . | . . . Scanalyzers . | . . . Garrison Access . | . . . Terminal Hacks 16 | . 10 6 Robot Analysis 5 | . 5 . Level Access Points 1 | . 1 . Branch Access Points 1 | . 1 . Terminal Index 1 | . 1 . Unreport Threat 2 | . . 2 Locate Traps 1 | . 1 . Dispatch Records 2 | . . 2 Transport Status 1 | . 1 . Recall Reinforcements 2 | . . 2 Fabricator Hacks . | . . . Repair Station Hacks . | . . . Recycling Unit Hacks . | . . . Scanalyzer . | . . . Garrison Access Hacks . | . . . Unauthorized Hacks 2 | . 2 . Terminals 1 | . 1 . Track 1 | . 1 . Fabricators . | . . . Repair Stations . | . . . Recycling Units . | . . . Scanalyzers . | . . . Garrison Access . | . . . Data Cores Recovered . | . . . Used . | . . . Hacking Detections 7 | . 4 3 Full Trace Events 1 | . 1 . Feedback Events . | . . . Feedback Blocked . | . . . Robot Schematics Acquired . | . . . Robots Built . | . . . Matter . | . . . Time . | . . . Total Robot Build Rating . | . . . Part Schematics Acquired . | . . . Parts Built . | . . . Matter . | . . . Time . | . . . Total Part Build Rating . | . . . Parts Repaired . | . . . Time . | . . . Parts Recycled . | . . . Recycled Matter . | . . . Retrieved Matter . | . . . Retrieved Components . | . . . Parts Scanalyzed . | . . . Part Schematics Acquired . | . . . Parts Damaged . | . . . Bothacking | -11 -10 -9 ------------ Run | Scr Mat Mat Used RIF Installer . | . . . Robots Hacked . | . . . Non-combat . | . . . Combat . | . . . Robot Hacks Applied . | . . . Relay Couplers Released . | . . . Robots Rewired . | . . . Allies Hacked . | . . . Hacks Repelled . | . . . Allies | -11 -10 -9 -------- Run | Scr Mat Mat Total Allies . | . . . Largest Group . | . . . Highest-Rated Group . | . . . Highest-Rated Ally . | . . . Total Orders . | . . . Ally Attacks . | . . . Total Damage . | . . . Kills . | . . . Allies Corrupted . | . . . Allies Melted . | . . . Intel | -11 -10 -9 ------- Run | Scr Mat Mat Robot Analysis Total 5 | . 5 . Derelict Logs Recovered . | . . . Drone Launches . | . . . Drone Recoveries . | . . . Exploration | -11 -10 -9 ------------- Run | Scr Mat Mat Turns Passed 974 | 54 620 300 Spaces Moved 612 | 39 378 195 Core 12 | 12 . . Treads . | . . . Legs 600 | 27 378 195 Wheels . | . . . Hover . | . . . Flight . | . . . Fastest Speed 50 | 50 120 120 Average Speed 118 | 98 120 120 Slowest Speed 120 | 120 120 120 Overloaded Moves . | . . . Propulsion Burnouts . | . . . Robots Hopped . | . . . Cave-ins Triggered . | . . . Exploration Rate (%) 31 | 3 63 29 Regions Visited 2 Branch Regions . Pre-discovered Areas . | . . . Known Exits Taken 1 | . 1 . Unknown Exits Taken 1 | 1 . . Scrap Searched . | . . . Spaces Dug . | . . . Terrain Destroyed 10 | . 7 3 Melee . | . . . Projectile . | . . . AOE 10 | . 7 3 Actions | -11 -10 -9 --------- Run | Scr Mat Mat Total 758 | 50 486 222 Wait 61 | . 61 . Move 610 | 38 377 195 Hop . | . . . Pick Up 16 | 5 8 3 Fast Attach . | . . . Attach 13 | 5 5 3 Detach . | . . . Swap 1 | . 1 . Drop 4 | . 4 . Fire 52 | 2 30 20 Melee . | . . . Ram . | . . . Kick 1 | . . 1 Crush . | . . . Escape Stasis . | . . . Rewire . | . . . Trap . | . . . Miscellaneous . | . . . Route ------- -11/Scrapyard -10/Materials (discovered 4 exits: *Mat x3 / *Min) -9/Materials (discovered 2 exits: [*Mat] / [*Min]) History --------- Turn | Location | Event 8 | -11/Scrapyard | Discovered new exit (range 14) 55 | -11/Scrapyard | Entered Materials 88 | -10/Materials | Identified exit to Mines 303 | -10/Materials | Build established: Mutant 573 | -10/Materials | Identified exit to Materials 675 | -10/Materials | Entered another Materials area 675 | -9/Materials | Evolved 2 slots: Utility x2 789 | -9/Materials | Discovered new exit (range 13) 927 | -9/Materials | Discovered new exit (range 16) 975 | -9/Materials | Self-destructed Last Messages --------------- 00917_ T-07 Excavator is excavating. 00918_ Acquired 10 matter. 00920_ K-01 Serf collects debris. 00927_ EXIT=FOUND 00931_ K-01 Serf collects debris. 00933_ U-05 Engineer lays Concrete. 00939_ K-01 Serf collects debris. 00952_ C-30 ARC bursts open, deploying its payload. 00952_ G-47 Trooper unfolds itself. 00952_ G-34 Mercenary unfolds itself. 00953_ G-34 Mercenary destroyed. 00958_ K-01 Serf cleans the Nuclear Reactor. 00963_ EM Pulse Gun destroyed. 00963_ Lgt. Armor Plating destroyed. 00963_ Destroyed Melee Analysis Suite. 00966_ Hvy. EM Pulse Gun destroyed. 00966_ K-01 Serf collects debris. 00973_ Slammed into G-34 Mercenary. 00973_ Destabilizing: System interference. 00973_ Structural Scanner temporarily disabled. Map ----- +----------------------------------------------------+ | | | | | | | | | | | ?????????????????????????????????????????????????? | | ?????????????????????????????????????????????????? | | ?#####???????????????????????????????????????????? | | ## ]]#???????????????????????????????????????????? | | ## ]]#???????????????????????????????????????????? | | ## !!#???????????????????????????????????????????? | | ## !!#???????????????????????????????????????????? | | !#???????????????????????????????????????????? | | !!#???????????????????????????????????????????? | | #####???????????????????????????????????????????? | | #???????????????????????????????????????????????? | | #????????????????#####??????????????????????????? | | ^#????????????????# #??????????????????????????? | | #????????????????# < #??????????????????????????? | | #????????????????# #??????????????????????????? | | #???????####?#???# ##########?????????????????? | | #???????# ??# # #?????????????????? | | #???????# ""??# # """ #?????????????????? | | #???????# """?# # """ #?????????????????? | | %#???????# """?# # """ #?????????????????? | | #???????? # # g@l #?????????????????? | | #???????# """ # #g""" #?????????????????? | | #???????# """ + + """ #?????????????????? | | #???????# """ # # """ #?????????????????? | | #???????? # # #?????????????????? | | #????????#### #### ######+###?????????????????? | | ################# ##### ########????????????? | | ![%*[ * ?????? | | !!!%= [% " ?????? | | ########### = [ = %" ?????? | | ############## ### ## ###############??????? | | + ! #? ####+#### #????????????????????? | | # ## #? ?# #????????????????????? | | # ######## """ ## #????????????????????? | | # #??????# """ ## #????????????????????? | | # #??????# """ ## ?????????????????????? | | # == #??????# ## ?????????????????????? | | # == #??????# """ ## ?????????????????????? | | # == #??????# """ ## ??????????????????????? | | ###+#######??????# ??? ## ??????????????????????? | | ??# #???????????????????# ??????????????????????? | | ??# #???????????????????# ??????????????????????? | | ??# #????????????????????????????????????????????? | | ??# #????????????????????????????????????????????? | | ### ######## ????????????????????????????????? | +----------------------------------------------------+ Best States ------------- Heat Dissipation 28 Energy Generation 14 Energy Capacity 560 Matter Stores 300 Matter Capacity 300 Sight Range 16 Terrain Scan Density 10 Armor Coverage 150 Resistance: KI 20 Resistance: TH 20 Resistance: EX 20 Resistance: EM 20 Resistance: I 20 Resistance: S 20 Resistance: P 20 Evasion (%) 40 Offensive Hacking 20 Item Schematics ----------------- None Robot Schematics ------------------ None Fabricated ------------ Nothing Alien Tech Used ----------------- None Achievements -------------- None Challenges ------------ None Game ------ Seed ZioniteScatterCorpse Manual? 0 Play Time 00:08:46 Cumulative 223.8 hours Start 2020.08.05 @ 20:13:55 End 2020.08.05 @ 20:20:46 Sessions 1 Manual Loads 0 Difficulty Adventurer Special Mode None Game No. 87 Rogue 0 Adventurer 87 Explorer 0 Win Type - Total 1 Types 1/0/0/0/0/0/0 Lore% 33 Gallery% 58 Achievement% 44 Wizard Run 0 Options --------- ASCII 0 Keyboard 0 Movement Numpad Keybinds 0 Fullscreen 0 Font 12/Smallcaps Map View 83x54 Tactical HUD 1 Map Filters NONE Filters NONE Steam X RUN: 81d3f9fd-453c-4331-952c-f13484bcef6e